bitfinex/quotes_ETHUSD_20251215
["timestamp","ask_amount","ask_price","bid_price","bid_amount"]
[1765815019122,1.0071,3015.7,3015.5,0.002]
[1765815019298,0.4681,3015.7,3015.5,0.002]
[1765815019498,1.0071,3015.6,3015.5,0.002]
[1765815020196,1.4979,3015.6,3015.5,0.002]
[1765815020392,0.9581,3015.6,3015.5,0.002]
[1765815020630,1.0298,3015.6,3015.5,0.002]
[1765815021321,0.1815,3015.8,3015.5,0.002]
[1765815021638,0.7205,3016.2,3015.5,0.002]
[1765815021799,0.539,3016.1,3015.5,0.002]
[1765815022629,1.0071,3016.1,3015.5,0.002]
[1765815022805,0.4681,3016.1,3015.5,0.002]
[1765815023124,0.539,3016.0,3015.5,0.002]
[1765815023318,0.4681,3016.1,3015.5,0.002]
[1765815023506,0.539,3016.0,3015.5,0.002]
[1765815024324,0.539,3016.0,3015.5,0.03516199]
[1765815024496,0.539,3016.0,3015.5,0.4564]
[1765815024697,0.4681,3016.4,3015.6,9.94826898]
[1765815024902,0.539,3016.5,3015.7,1.95256179]
[1765815025627,0.1815,3017.0,3015.8,0.4544]
[1765815025827,0.1815,3017.0,3015.7,1.95256179]
[1765815025828,1.0071,3016.9,3015.7,1.95256179]
[1765815026219,0.539,3016.8,3015.7,2.40696179]
[1765815026408,1.0071,3016.8,3015.7,1.95256179]
[1765815026607,0.539,3016.8,3015.8,1.97609204]
[1765815026930,0.539,3016.8,3016.0,0.58047529]
[1765815027314,0.539,3016.8,3016.1,0.1972]
[1765815027508,0.001,3017.3,3016.1,0.6516]
[1765815027709,0.001,3017.3,3016.2,1.01913359]
[1765815027910,0.001,3017.3,3016.4,0.405504]
[1765815028111,0.001,3017.3,3017.2,0.4861]
[1765815028431,0.4918,3017.3,3016.4,0.405504]
[1765815028732,0.4918,3017.3,3016.3,1.32172546]
[1765815028733,8.083722,3017.2,3016.3,0.58047529]
[1765815028917,0.4681,3017.1,3016.3,0.58047529]
[1765815029336,0.1815,3016.4,3016.3,0.58047529]
[1765815030832,0.1815,3016.4,3016.3,3.89579538]
[1765815031218,0.4681,3016.7,3016.3,7.21111547]
[1765815031427,0.7312,3016.8,3016.3,10.52643556]
[1765815031629,0.7312,3016.8,3016.3,7.21111547]
[1765815031834,1.211,3016.8,3016.3,7.21111547]
[1765815032630,0.4798,3016.7,3016.3,7.21111547]
[1765815032802,0.4992,3016.4,3016.3,3.31532009]
[1765815033132,0.001,3016.4,3016.3,3.31532009]
[1765815033534,0.5002,3016.4,3016.3,3.31532009]
[1765815033734,0.98,3016.4,3015.1,0.1966]
[1765815033936,0.001,3016.4,3016.2,3.31543001]
[1765815034105,0.54,3016.4,3016.3,3.31532009]
[1765815034310,0.001,3016.4,3016.3,3.79552009]
[1765815034523,0.001,3016.4,3016.3,4.5547851]
[1765815034729,0.001,3016.4,3016.3,4.5879383]
[1765815035106,0.001,3016.4,3016.3,5.16841359]
[1765815035306,0.001,3016.4,3016.3,5.13526039]
[1765815035609,0.001,3016.4,3016.3,5.61696039]
[1765815036056,0.98,3016.4,3016.3,3.31532009]
[1765815036841,0.001,3016.4,3015.9,0.58047529]
[1765815037136,0.54,3016.4,3015.9,0.58047529]
[1765815037344,0.4798,3016.3,3015.9,0.58047529]
[1765815037512,0.54,3016.4,3015.9,0.58047529]
[1765815038015,0.001,3016.4,3015.9,0.58047529]
[1765815038205,0.54,3016.4,3015.9,1.63328015]
[1765815038640,0.54,3016.4,3015.9,2.11498015]
[1765815038838,0.54,3016.4,3016.0,9.94694958]
[1765815039342,0.54,3016.4,3016.1,0.4817]
[1765815039541,0.001,3016.4,3016.3,0.4802]
[1765815040409,0.001,3016.4,3016.3,0.9619]
[1765815040726,0.001,3016.4,3016.3,4.85769538]
[1765815040929,0.001,3016.4,3016.3,6.13855891]
[1765815042849,0.001,3016.4,3016.3,6.67755891]
[1765815043348,0.001,3016.4,3016.3,6.13855891]
[1765815043869,0.0002,3016.4,3016.3,4.85769538]
[1765815044156,0.0002,3016.4,3016.3,5.26319938]
[1765815044343,0.001,3017.3,3016.4,0.98597929]
[1765815044522,0.001,3017.3,3017.2,1.082304]
[1765815044870,0.001,3017.3,3017.2,5.45881045]
[1765815045017,0.001,3017.3,3017.2,6.4480827]
[1765815046449,0.001,3017.3,3017.2,3.31433116]
[1765815046850,0.001,3017.3,3016.9,9.94396241]
[1765815047146,0.001,3017.3,3016.9,6.62930167]
[1765815047347,0.4808,3017.3,3016.9,3.31464093]
[1765815048122,0.54,3017.3,3016.9,3.31464093]
[1765815048524,0.4798,3017.2,3016.9,3.31464093]
[1765815048729,0.54,3017.3,3016.6,3.31499038]
[1765815048952,0.54,3017.3,3016.7,0.58047529]
[1765815049153,0.193,3016.7,3016.6,3.31499038]
[1765815049840,0.54,3017.3,3016.6,6.62998076]
[1765815050350,0.4798,3017.2,3016.6,6.62998076]
[1765815050527,0.4798,3017.2,3016.6,3.31499038]
[1765815050736,0.193,3016.7,3016.4,3.31518597]
[1765815050944,0.193,3016.7,3016.3,6.63064018]
[1765815051451,0.4798,3016.6,3016.3,6.63064018]
[1765815051973,0.193,3016.9,3016.3,9.94596027]
[1765815052248,0.732,3016.9,3016.3,6.63064018]
[1765815052453,1.2118,3016.9,3016.3,6.63064018]
[1765815052756,0.4798,3016.8,3016.3,3.31532009]
[1765815053061,0.4992,3016.4,3016.3,3.31532009]
[1765815053553,0.539,3016.6,3016.3,6.63064018]
[1765815053756,0.4992,3016.4,3016.1,3.31545977]
[1765815053931,0.0181,3016.2,3015.7,3.31597214]
[1765815054124,0.4944,3016.0,3015.6,3.31607292]
[1765815054326,0.539,3016.1,3015.7,0.58047529]
[1765815054552,0.193,3015.7,3015.6,3.31607292]
[1765815054749,0.539,3016.1,3015.6,3.31607292]
[1765815054750,0.4798,3016.0,3015.6,3.31607292]
[1765815054953,0.4992,3015.7,3015.5,0.002]
[1765815055356,0.4865,3015.6,3015.5,0.002]
[1765815055924,1.518,3015.6,3015.5,0.002]
[1765815056127,0.193,3015.9,3015.5,0.002]
[1765815056355,0.539,3015.7,3015.5,0.002]
[1765815056555,0.4798,3016.6,3015.5,0.4837]
[1765815056757,0.539,3016.5,3015.6,0.4802]
[1765815056959,0.539,3016.5,3015.7,6.6319594]
[1765815057263,0.4798,3016.4,3015.6,3.31605471]
[1765815057430,6.39528,3016.3,3015.6,6.63214437]
[1765815057630,0.6922,3015.7,3015.6,3.31605471]
[1765815057850,0.6922,3015.7,3015.5,0.002]
[1765815058061,0.4865,3015.6,3015.5,0.002]
[1765815059458,3.80258966,3015.6,3015.5,0.002]
[1765815060256,28.58940766,3015.6,3015.5,0.002]
[1765815060573,0.58047529,3015.1,3014.6,0.002]
[1765815060738,0.4943,3014.7,3014.6,0.002]
[1765815060934,1.0333,3014.7,3014.6,0.002]
[1765815061357,0.4943,3014.7,3014.6,0.002]
[1765815061532,0.539,3014.7,3014.6,0.002]
[1765815061730,1.499,3014.7,3014.6,0.002]
[1765815062776,0.4806,3015.4,3014.6,0.002]
[1765815062935,0.539,3015.3,3014.6,0.002]
[1765815063268,0.4794,3014.7,3014.6,0.002]
[1765815063466,0.539,3014.7,3014.6,0.002]
[1765815063676,1.499,3014.7,3014.6,0.002]
[1765815064770,0.4794,3014.7,3014.6,0.002]
[1765815064969,1.499,3014.7,3014.6,0.002]
[1765815065341,4.81607964,3014.7,3014.6,0.002]
[1765815065540,1.499,3014.7,3014.6,0.002]
[1765815066158,4.81607964,3014.7,3014.6,0.002]
[1765815066368,1.499,3014.7,3014.6,0.002]
[1765815066576,4.81607964,3014.7,3014.6,0.002]
[1765815066856,4.81527964,3014.7,3014.6,0.002]
[1765815067972,0.9592,3014.7,3014.6,0.002]
[1765815068154,1.4982,3014.7,3014.6,0.002]
[1765815068350,1.0184,3014.7,3014.6,0.002]
[1765815068556,1.499,3014.7,3014.6,0.002]
[1765815069473,1.0184,3014.7,3014.6,0.002]
[1765815069848,0.539,3014.7,3014.6,0.002]
[1765815070047,0.193,3015.7,3014.6,0.002]
[1765815070048,0.193,3015.7,3014.6,0.9833]
[1765815070391,0.4806,3015.9,3014.6,0.9833]
[1765815070392,0.539,3015.6,3014.9,0.4973]
[1765815070597,0.539,3015.7,3015.0,1.06447529]
[1765815070872,0.4806,3016.3,3015.0,1.06447529]
[1765815071074,0.539,3016.2,3015.2,9.94958874]
[1765815071274,0.539,3016.2,3015.2,11.05099514]
[1765815071467,0.4806,3016.3,3015.2,11.05099514]
[1765815071671,0.539,3016.2,3015.2,11.53499514]
[1765815072177,0.539,3016.1,3015.2,11.05099514]
[1765815072387,0.539,3016.1,3015.2,7.73446556]
[1765815072680,1.0196,3016.1,3015.2,11.05099514]
[1765815072846,0.4806,3016.0,3015.2,7.73446556]
[1765815073047,0.1921,3015.9,3015.2,7.73446556]
[1765815073560,0.6727,3015.9,3015.2,6.63305916]
[1765815073966,0.4794,3015.3,3014.6,0.002]
[1765815074169,0.4794,3015.3,3015.2,3.31652958]
[1765815074390,0.58047529,3016.6,3015.2,3.81382958]
[1765815074674,11.33749,3016.4,3015.3,0.58047529]
[1765815074886,8.270215,3016.4,3015.3,0.58047529]
[1765815075071,0.6715,3015.4,3015.2,6.63305916]
[1765815075268,0.539,3015.3,3015.2,3.89700487]
[1765815075576,0.539,3015.3,3015.1,3.31663831]
[1765815075577,0.1921,3015.8,3015.4,6.63261922]
[1765815075982,1.0196,3015.7,3015.4,6.63261922]
[1765815076285,0.4794,3015.5,3015.3,3.31638251]
[1765815076651,0.5056,3015.4,3015.3,3.31638251]
[1765815076850,0.5056,3015.4,3015.1,3.31657688]
[1765815077051,0.4748,3015.2,3015.1,3.31657688]
[1765815077279,1.0138,3015.2,3014.6,0.002]
[1765815077453,3.79647964,3014.7,3014.6,0.002]
[1765815077665,4.33547964,3014.7,3014.6,0.002]
[1765815077856,1.499,3014.7,3014.6,0.002]
[1765815078062,4.81607964,3014.7,3014.6,0.002]
[1765815078312,0.96,3014.7,3014.6,0.002]
[1765815078464,1.499,3014.7,3014.6,0.002]
[1765815078664,4.81607964,3014.7,3014.6,0.002]
[1765815079502,1.499,3014.7,3014.6,0.002]
[1765815079703,4.81607964,3014.7,3014.6,0.002]
[1765815080013,26.15811293,3014.7,3014.6,0.002]
[1765815080301,7.91341793,3014.7,3014.6,0.002]
[1765815081100,7.90702765,3014.7,3014.6,0.002]
[1765815081500,14.60588162,3014.7,3014.6,0.002]
[1765815081706,0.405504,3013.9,3013.5,0.002]
[1765815081911,0.624104,3013.6,3012.1,0.002]
[1765815082068,0.58047529,3013.2,3012.1,3.32192847]
[1765815082267,14.368466,3013.4,3012.1,3.32192847]
[1765815082268,0.6715,3012.4,3012.1,0.002]
[1765815082488,1.2105,3012.4,3012.1,0.002]
[1765815082701,1.6911,3012.4,3012.1,0.002]
[1765815084078,5.01071226,3012.4,3012.1,0.002]
[1765815084409,1.6911,3012.4,3012.1,0.002]
[1765815084768,5.01071226,3012.4,3012.1,0.002]
[1765815085431,27.41587555,3012.4,3012.1,0.002]
[1765815085975,11.67027926,3012.4,3012.1,0.002]
[1765815086304,9.12591526,3012.4,3012.1,0.002]
[1765815086603,23.82686126,3012.4,3012.1,0.002]
[1765815086803,8.657005,3012.4,3012.1,0.002]
[1765815086976,1.6911,3012.4,3012.1,0.002]
[1765815087376,35.01071226,3012.4,3012.1,0.002]
[1765815087584,31.01650326,3012.4,3012.1,0.002]
[1765815087883,4.089479,3012.4,3012.1,0.002]
[1765815088284,7.40909126,3012.4,3012.1,0.002]
[1765815088472,1.6911,3012.4,3012.1,0.002]
[1765815089013,7.83951126,3012.4,3012.1,0.002]
[1765815089428,7.42472226,3012.4,3012.1,0.002]
[1765815089592,8.86677155,3012.4,3012.1,0.002]
[1765815089795,9.89194455,3012.4,3012.1,0.002]
[1765815090492,26.26117255,3012.4,3012.1,0.002]
[1765815090881,0.0232,3012.2,3011.8,0.002]
[1765815091082,28.15071229,3011.9,3011.8,0.002]
[1765815091281,24.51956229,3011.9,3011.8,0.002]
[1765815091526,24.98176229,3011.9,3011.8,0.002]
[1765815091729,23.45674429,3011.9,3011.8,0.002]
[1765815091945,26.77690764,3011.9,3011.8,0.002]
[1765815092084,22.24559064,3011.9,3011.8,0.002]
[1765815092285,21.60732964,3011.9,3011.8,0.002]
[1765815092486,22.45175964,3011.9,3011.8,0.002]
[1765815092935,30.0,3011.7,3011.1,0.002]
[1765815093214,0.2136,3011.2,3011.1,0.002]
[1765815093510,1.158104,3011.2,3011.1,0.002]
[1765815093722,17.95277629,3011.2,3011.1,0.002]
[1765815093909,19.27343046,3011.2,3011.1,0.002]
[1765815094489,5.51811446,3011.2,3011.1,0.002]
[1765815094802,35.51811446,3011.2,3011.1,0.002]
[1765815095007,32.64684446,3011.2,3011.1,0.002]
[1765815095517,35.51811446,3011.2,3011.1,0.002]
[1765815096195,33.84809146,3011.2,3011.1,0.002]
[1765815096598,35.51811446,3011.2,3011.1,0.002]
[1765815096829,0.4574,3010.7,3009.8,0.002]
[1765815097058,0.4082,3009.9,3009.8,0.002]
[1765815097316,0.539,3009.9,3009.8,0.002]
[1765815097487,0.539,3009.9,3009.8,0.463]
[1765815097684,0.4586,3010.6,3009.8,0.463]
[1765815098025,0.539,3010.5,3009.8,0.9429]
[1765815098222,0.539,3010.5,3009.9,6.64473902]
[1765815098514,0.539,3010.5,3010.0,0.7587639]
[1765815098816,0.9976,3010.5,3009.9,3.32236951]
[1765815099015,0.9976,3010.5,3009.9,6.64473902]
[1765815099325,0.1886,3010.7,3009.9,9.96710853]
[1765815099619,0.539,3010.6,3009.9,9.96710853]
[1765815099917,0.4762,3010.0,3009.9,3.32236951]
[1765815100119,0.539,3010.0,3009.9,3.32236951]
[1765815100298,0.1886,3010.7,3009.9,0.461]
[1765815100617,0.4586,3011.3,3010.0,0.4799]
[1765815100828,0.1886,3010.9,3009.8,0.58247529]
[1765815101190,0.6472,3010.9,3009.9,0.4799]
[1765815101391,3.35996816,3012.0,3010.2,0.58047529]
[1765815101392,0.03987572,3012.0,3010.2,0.58047529]
[1765815101587,0.03987572,3012.0,3009.9,0.4799]
[1765815101588,0.9976,3011.7,3010.8,0.1948]
[1765815101822,0.4586,3012.3,3011.0,0.58047529]
[1765815102023,0.539,3012.2,3011.0,0.58047529]
[1765815102186,0.539,3012.2,3011.1,9.96313638]
[1765815102391,0.4586,3012.1,3011.1,6.64209092]
[1765815102888,0.539,3012.0,3011.1,9.96313638]
[1765815103088,0.539,3011.9,3011.2,1.06037529]
[1765815103627,0.539,3011.8,3011.2,0.58047529]
[1765815103922,0.539,3011.7,3011.2,0.58047529]
[1765815104091,0.539,3011.7,3011.3,1.05436117]
[1765815104286,0.539,3011.7,3011.4,6.64142922]
[1765815104517,0.4586,3011.6,3011.4,3.32071461]
[1765815104720,0.4586,3011.6,3011.4,6.64142922]
[1765815105099,0.4586,3011.6,3011.4,3.32071461]
[1765815105910,0.4586,3011.6,3010.6,3.32150423]
[1765815106089,0.4586,3011.6,3010.7,0.58047529]
[1765815106399,0.4586,3011.6,3010.9,0.58047529]
[1765815106400,3.77913585,3011.6,3010.9,0.58047529]
[1765815106605,3.77913585,3011.6,3010.8,6.64274963]
[1765815106818,0.1886,3010.9,3010.6,3.32153763]
[1765815107118,0.539,3010.8,3010.5,3.32168588]
[1765815107291,0.539,3010.8,3010.7,3.32148669]
[1765815108291,0.4586,3011.4,3010.4,0.58047529]
[1765815108496,0.539,3011.3,3010.4,1.69314876]
[1765815108929,0.4586,3011.2,3010.4,0.58047529]
[1765815109424,0.4586,3011.2,3010.3,6.64385608]
[1765815109629,0.1886,3010.4,3010.3,3.90240333]
[1765815109827,0.7276,3010.4,3010.3,3.90240333]
[1765815110197,0.4586,3010.7,3010.3,7.22433137]
[1765815110393,0.539,3010.4,3010.3,3.90240333]
[1765815110897,1.0152,3010.4,3010.3,3.32192804]
[1765815111101,0.539,3010.4,3010.3,3.32192804]
[1765815111342,0.539,3010.4,3009.8,0.002]
[1765815111343,4.79565393,3010.4,3009.8,0.002]
[1765815111630,0.6635,3009.9,3009.8,3.32447989]
[1765815111926,1.6611,3009.9,3009.8,3.32447989]
[1765815112635,1.2025,3009.9,3009.8,0.002]
[1765815112820,1.6624,3009.9,3009.8,0.002]
[1765815113398,16.96159023,3009.9,3009.8,0.002]
[1765815113705,11.18539223,3009.9,3009.8,0.002]
[1765815113896,10.57817151,3009.9,3009.8,0.002]
[1765815114296,4.98396951,3009.9,3009.8,0.002]
[1765815114496,13.60496251,3009.9,3009.8,0.002]
[1765815114912,4.98396951,3009.9,3009.8,0.002]
[1765815115120,7.76529351,3009.9,3009.8,0.002]
[1765815115438,25.73547751,3009.9,3009.8,0.002]
[1765815115730,18.10456851,3009.9,3009.8,0.002]
[1765815115933,9.89829151,3009.9,3009.8,0.002]
[1765815116508,1.1226,3009.9,3009.8,0.002]
[1765815116909,1.6616,3009.9,3009.8,0.002]
[1765815117453,0.001,3010.6,3009.8,0.002]
[1765815117651,0.9976,3010.5,3009.8,0.002]
[1765815118315,0.6648,3009.9,3009.8,0.002]
[1765815118635,0.4586,3010.4,3009.8,0.002]
[1765815118934,0.001,3010.6,3009.8,0.002]
[1765815118935,0.539,3010.3,3009.8,0.002]
[1765815119440,0.001,3010.6,3009.8,0.4819]
[1765815119607,0.001,3010.6,3009.8,0.002]
[1765815119608,0.539,3010.2,3009.8,0.002]
[1765815119810,0.6648,3009.9,3009.8,0.002]
[1765815120003,0.4596,3010.6,3009.8,0.002]
[1765815120208,0.6648,3009.9,3009.8,0.002]
[1765815120410,1.2038,3009.9,3009.8,0.002]
[1765815120702,1.6624,3009.9,3009.8,0.002]
[1765815121436,15.78190951,3009.9,3009.8,0.002]
[1765815121641,15.82178523,3009.9,3009.8,0.002]
[1765815121855,12.28611872,3009.9,3009.8,0.002]
[1765815122135,1.16327572,3009.9,3009.8,0.002]
[1765815122538,1.6624,3009.9,3009.8,0.002]
[1765815122912,10.99528251,3009.9,3009.8,0.002]
[1765815123131,13.76688151,3009.9,3009.8,0.002]
[1765815123306,12.67611651,3009.9,3009.8,0.002]
[1765815123508,12.71599223,3009.9,3009.8,0.002]
[1765815123708,1.70227572,3009.9,3009.8,0.002]
[1765815124263,0.1824,3010.0,3009.8,0.002]
[1765815124412,0.539,3009.9,3009.8,0.002]
[1765815124746,0.4573,3010.5,3009.8,0.002]
[1765815125041,0.001,3010.6,3009.9,0.58047529]
[1765815125228,0.539,3010.4,3010.0,0.82114263]
[1765815125440,0.539,3010.4,3009.8,0.002]
[1765815126122,0.6745,3009.9,3009.8,0.002]
[1765815126307,0.6745,3009.9,3009.0,0.002]
[1765815126308,0.405504,3009.8,3009.0,0.002]
[1765815126511,0.4573,3009.8,3009.0,0.002]
[1765815126713,0.539,3009.7,3009.0,0.002]
[1765815127158,0.4573,3009.6,3009.0,0.002]
[1765815127513,0.1824,3009.9,3009.1,0.1993]
[1765815127514,0.539,3009.5,3009.1,0.1993]
[1765815127823,0.539,3009.5,3009.0,0.002]
[1765815128338,0.539,3009.4,3009.1,0.1993]
[1765815128650,0.539,3009.4,3009.0,0.002]
[1765815130033,0.539,3009.3,3009.1,0.1993]
[1765815130239,0.1824,3009.9,3009.0,1.05732277]
[1765815130551,0.1824,3009.9,3009.0,0.002]
[1765815130552,0.9963,3009.8,3009.0,0.002]
[1765815130933,3.77992717,3009.7,3009.0,3.32536324]
[1765815131130,7.10255434,3009.7,3009.0,0.002]
[1765815131434,0.4573,3009.6,3009.0,0.002]
[1765815131771,0.405504,3009.3,3008.6,0.002]
[1765815132062,8.080461,3008.8,3008.6,0.002]
[1765815132253,0.539,3008.7,3008.6,0.002]
[1765815132758,0.9963,3008.7,3008.6,0.002]
[1765815132958,4.35987033,3008.7,3008.6,0.002]
[1765815133456,5.34584962,3008.7,3008.6,0.002]
[1765815133658,28.91994662,3008.7,3008.6,0.002]
[1765815134031,28.91994662,3008.7,3007.7,0.002]
[1765815134032,0.405504,3008.4,3007.7,0.002]
[1765815134243,0.405504,3008.4,3006.7,3.34588865]
[1765815134244,17.042603,3007.8,3006.7,3.34588865]
[1765815134440,0.1824,3006.8,3006.7,0.02]
[1765815134738,0.7214,3006.8,3006.7,0.02]
[1765815134939,0.7214,3006.8,3006.5,0.002]
[1765815135341,0.4573,3006.7,3006.5,0.002]
[1765815135541,18.679375,3006.6,3006.5,0.002]
[1765815135753,0.4573,3006.7,3005.0,0.6619]
[1765815135754,0.98597929,3006.3,3005.0,3.32775686]
[1765815136066,0.98597929,3006.5,3004.7,0.58047529]
[1765815136067,2.942293,3006.1,3004.7,0.58047529]
[1765815136275,0.539,3006.0,3005.5,3.32720406]
[1765815136471,0.49717572,3006.4,3005.0,3.32768926]
[1765815136472,0.539,3005.9,3005.0,3.32768926]
[1765815136643,0.7214,3005.9,3004.9,3.32784949]
[1765815136970,0.4565,3005.8,3004.9,3.32784949]
[1765815137165,0.4565,3005.8,3004.9,6.65574725]
[1765815137332,3.78340132,3005.8,3004.9,4.03831546]
[1765815137530,0.03987572,3005.6,3004.4,3.32844839]
[1765815137867,0.03987572,3005.6,3003.7,3.32919223]
[1765815137868,0.1824,3004.9,3003.7,3.32919223]
[1765815138037,0.539,3004.8,3004.1,3.32870861]
[1765815138363,0.539,3004.8,3004.5,3.32832191]
[1765815138567,0.539,3004.8,3004.6,3.32819561]
[1765815138774,0.539,3004.8,3004.6,3.32820862]
[1765815139070,0.9963,3004.8,3004.0,6.6577896]
[1765815139265,0.9963,3004.8,3003.0,3.8689157]
[1765815139266,21.112492,3004.7,3003.9,3.32896567]
[1765815139576,0.539,3004.6,3003.6,3.32926809]
[1765815139736,0.9963,3004.6,3003.9,3.32890955]
[1765815139936,12.701956,3004.5,3003.5,3.32934955]
[1765815140138,0.1824,3003.9,3002.7,0.4626]
[1765815140371,0.539,3003.8,3003.6,3.32924016]
[1765815140576,0.539,3003.7,3003.6,3.32924016]
[1765815141071,0.539,3003.7,3002.8,3.33016791]
[1765815141072,0.539,3003.7,3003.0,0.405504]
[1765815141374,0.539,3003.7,3003.2,0.002]
[1765815141975,0.4573,3003.6,3003.2,0.002]
[1765815142479,0.539,3003.5,3003.2,0.002]
[1765815142634,0.4573,3003.6,3003.2,0.002]
[1765815142635,0.539,3003.4,3003.2,0.002]
[1765815143041,0.9963,3003.4,3003.2,0.002]
[1765815143861,0.62035101,3003.8,3003.2,0.002]
[1765815143862,0.539,3003.3,3003.2,0.002]
[1765815144234,0.03987572,3003.8,3003.2,0.002]
[1765815144451,0.539,3003.7,3003.2,0.002]
[1765815144936,0.9963,3003.7,3003.2,0.002]
[1765815145375,0.03987572,3003.8,3003.2,0.002]
[1765815145583,0.539,3003.6,3003.2,0.002]
[1765815145878,0.03987572,3003.8,3003.2,0.002]
[1765815146090,0.4573,3004.0,3003.2,0.002]
[1765815146261,0.539,3003.7,3003.2,0.002]
[1765815147183,0.1824,3004.4,3003.4,0.405504]
[1765815147348,0.539,3004.3,3003.4,0.405504]
[1765815147548,0.539,3004.3,3003.4,0.868104]
[1765815147767,0.4573,3004.8,3003.4,0.868104]
[1765815147968,0.539,3004.6,3003.5,0.4626]
[1765815148183,0.03987572,3004.5,3003.3,0.58047529]
[1765815148378,0.03987572,3004.5,3003.4,0.4626]
[1765815148552,0.539,3004.4,3003.4,0.4626]
[1765815148877,0.4573,3004.6,3003.5,0.405504]
[1765815149079,0.539,3004.3,3003.5,0.405504]
[1765815149280,0.539,3004.3,3003.6,6.65867624]
[1765815149613,0.539,3004.3,3003.6,11.07364692]
[1765815149885,0.539,3004.3,3003.6,6.65867624]
[1765815150984,0.51757572,3004.2,3003.2,0.002]
[1765815151217,3.32878399,3004.1,3003.2,0.002]
[1765815151495,0.03987572,3004.0,3003.2,0.002]
[1765815151849,0.4563,3003.9,3003.2,0.002]
[1765815153085,0.539,3003.8,3003.2,0.002]
[1765815153258,0.539,3003.8,3003.2,6.66156312]
[1765815153683,0.4563,3003.9,3003.2,6.66156312]
[1765815153981,0.539,3003.8,3003.2,10.99068726]
[1765815154183,0.539,3003.7,3003.2,10.99068726]
[1765815154365,0.49617572,3004.8,3003.4,0.405504]
[1765815154569,0.539,3004.7,3003.6,0.405504]
[1765815154807,0.539,3004.7,3003.5,0.405504]
[1765815155175,0.49617572,3005.2,3003.9,0.405504]
[1765815155394,0.539,3005.1,3004.1,0.405504]
[1765815155702,0.539,3005.1,3004.2,0.681]
[1765815156066,0.539,3005.1,3004.2,0.1999]
[1765815156411,0.49617572,3005.0,3003.9,0.58047529]
[1765815156570,0.49617572,3005.0,3004.0,1.14544286]
[1765815156772,0.1897,3004.9,3004.0,1.14544286]
[1765815157374,0.03987572,3005.2,3004.2,0.58047529]
[1765815157677,0.539,3005.1,3004.2,0.58047529]
[1765815157902,0.03987572,3005.2,3004.2,1.06157529]
[1765815158088,0.03987572,3005.2,3004.3,1.43767113]
[1765815158089,0.539,3005.0,3004.3,1.43767113]
[1765815158294,0.539,3005.0,3004.3,1.91877113]
[1765815158494,0.539,3004.9,3004.4,0.4811]
[1765815159376,0.539,3004.9,3004.5,0.58047529]
[1765815160010,0.5382,3004.9,3004.5,0.58047529]
[1765815160290,0.5382,3004.9,3004.5,1.78082541]
[1765815160488,0.5382,3004.9,3004.6,0.4811]
[1765815160996,0.5382,3004.9,3004.8,0.4805]
[1765815161196,0.5382,3004.9,3004.5,1.78082541]
[1765815161405,0.5382,3004.9,3004.6,6.65646008]
[1765815161578,0.5382,3004.9,3004.6,7.83303379]
[1765815161777,0.5382,3004.9,3004.6,6.65646008]
[1765815164657,0.5382,3004.9,3004.5,3.32832753]
[1765815164820,0.4685,3004.7,3004.5,3.32834082]
[1765815164980,0.4685,3004.7,3004.5,6.65668164]
[1765815165182,0.0811,3004.6,3004.5,3.32834082]
[1765815165711,0.7279,3004.9,3004.2,0.58047529]
[1765815165916,0.7279,3004.9,3004.1,3.32878399]
[1765815165917,0.4685,3004.2,3004.1,3.32878399]
[1765815166116,0.539,3004.2,3004.1,3.52868399]
[1765815167099,0.4563,3004.8,3004.1,3.52868399]
[1765815167100,0.4563,3004.8,3004.1,10.66675197]
[1765815167414,0.1897,3004.9,3004.7,0.4805]
[1765815167415,0.539,3004.9,3004.7,0.4805]
[1765815167718,0.7287,3004.9,3004.7,3.32808525]
[1765815167927,0.9248,3004.8,3004.4,3.32839489]
[1765815168217,1.10097172,3004.8,3004.2,3.32864937]
[1765815168419,0.4563,3004.7,3004.2,3.32864937]
[1765815168621,0.4563,3004.7,3004.3,3.32849058]
[1765815168823,0.4563,3004.7,3004.0,0.002]
[1765815169404,0.4563,3004.7,3004.0,3.33080479]
[1765815169601,0.4563,3004.7,3004.0,0.002]
[1765815170221,0.539,3004.6,3004.0,0.002]
[1765815171052,0.4685,3004.1,3004.0,0.002]
[1765815171324,11.348517,3004.1,3004.0,0.002]
[1765815171531,8.638651,3004.1,3004.0,0.002]
[1765815171835,12.14360671,3004.1,3004.0,0.002]
[1765815172324,8.40583471,3004.1,3004.0,0.002]
[1765815172493,4.53805072,3004.1,3004.0,0.002]
[1765815172692,1.4638,3004.1,3004.0,0.002]
[1765815173626,13.94346899,3004.1,3004.0,0.002]
[1765815174122,25.205406,3004.0,3003.2,0.002]
[1765815174292,0.0811,3003.3,3003.2,0.002]
[1765815174493,0.6201,3003.3,3003.2,0.002]
[1765815174831,0.4563,3004.2,3003.2,0.6824]
[1765815174997,0.4563,3003.8,3003.2,0.002]
[1765815175198,0.539,3003.7,3003.2,0.002]
[1765815175608,0.4563,3003.6,3003.2,0.002]
[1765815175916,0.4685,3003.3,3003.2,0.002]
[1765815176329,0.9248,3003.3,3003.2,0.002]
[1765815176909,0.539,3003.7,3003.2,0.002]